bitfinex/quotes_ETHUSD_20251128
["timestamp","ask_amount","ask_price","bid_price","bid_amount"]
[1764295044720,0.002,3001.0,3000.9,4.08216096]
[1764295044945,0.002,3001.0,3000.9,5.17021163]
[1764295047749,0.002,3001.0,3000.9,5.1368883]
[1764295048110,0.002,3001.0,3000.9,5.17021163]
[1764295048452,0.002,3001.0,3000.9,5.1368883]
[1764295048956,0.002,3001.0,3000.9,5.17021163]
[1764295050444,0.002,3001.0,3000.9,5.58480574]
[1764295050652,0.002,3001.0,3000.9,5.76248241]
[1764295052250,0.002,3001.0,3000.9,5.55148241]
[1764295052435,0.4655,3001.0,3000.9,5.55148241]
[1764295052842,0.4655,3001.0,3000.9,5.76248241]
[1764295053152,0.4655,3001.0,3000.9,4.05792774]
[1764295053345,0.932,3001.0,3000.9,3.54333363]
[1764295054229,0.932,3001.0,3000.9,3.33333363]
[1764295055125,0.002,3001.0,3000.9,3.33333363]
[1764295055325,0.932,3001.0,3000.9,3.36665696]
[1764295055715,0.932,3001.0,3000.9,3.33333363]
[1764295056224,0.932,3001.0,3000.9,0.001]
[1764295059241,1.24296357,3001.0,3000.9,0.001]
[1764295061053,0.77646357,3001.0,3000.9,0.001]
[1764295061240,0.002,3001.0,3000.9,0.001]
[1764295061557,0.002,3001.0,3000.9,0.03432333]
[1764295063294,0.002,3001.0,3000.9,3.77216096]
[1764295063446,0.002,3001.0,3000.9,5.25876611]
[1764295063643,0.002,3001.0,3000.9,6.51872597]
[1764295063853,0.002,3001.0,3000.9,6.41872597]
[1764295064563,0.002,3001.0,3000.9,6.5520493]
[1764295064967,0.002,3001.0,3000.9,6.68549628]
[1764295065166,0.002,3001.0,3000.9,6.65217295]
[1764295066132,0.002,3001.0,3000.9,5.35888976]
[1764295066329,0.002,3001.0,3000.9,5.49221309]
[1764295068046,0.002,3001.2,3000.9,5.82321309]
[1764295068256,0.002,3001.2,3001.1,7.25048271]
[1764295068550,0.002,3001.2,3001.1,5.69603289]
[1764295068742,0.002,3001.2,3001.1,5.729354]
[1764295069677,0.002,3001.3,3001.2,0.505504]
[1764295070257,0.002,3001.3,3001.2,3.83750453]
[1764295070470,0.002,3001.3,3001.2,5.36328866]
[1764295071590,0.002,3001.3,3001.2,5.49671116]
[1764295071759,0.002,3001.3,3001.2,5.70771116]
[1764295072260,0.002,3001.3,3001.2,5.49671116]
[1764295072460,0.002,3001.3,3001.2,5.70771116]
[1764295072870,0.002,3001.3,3001.2,6.69297046]
[1764295073070,0.9279,3001.3,3001.2,6.05404396]
[1764295073366,0.9279,3001.3,3001.2,3.94850453]
[1764295073577,0.9279,3001.3,3001.2,3.33200053]
[1764295073775,0.9279,3001.3,3001.2,3.54300053]
[1764295073983,0.9279,3001.3,3001.2,3.33200053]
[1764295074293,0.9279,3001.3,3001.1,3.33211139]
[1764295074497,0.9259,3001.2,3001.1,4.0577055]
[1764295079197,0.9259,3001.2,3001.1,4.09102661]
[1764295079398,0.9259,3001.2,3001.1,5.38350096]
[1764295079399,0.4666,3001.2,3001.1,5.38350096]
[1764295081003,0.002,3001.3,3001.2,0.405504]
[1764295081370,0.002,3001.3,3001.2,0.538824]
[1764295081712,0.9279,3001.3,3001.1,8.6822914]
[1764295081883,0.002,3001.3,3001.0,3.3322081]
[1764295082217,0.4613,3001.3,3001.1,0.03332111]
[1764295082516,0.002,3001.3,3001.1,0.44652008]
[1764295082673,0.002,3001.3,3001.2,3.83750453]
[1764295083003,0.002,3001.3,3001.2,4.56309864]
[1764295083573,0.002,3001.3,3001.2,4.89409864]
[1764295084809,0.002,3001.3,3001.2,11.5916973]
[1764295084972,0.002,3001.3,3001.2,13.64093585]
[1764295085395,0.002,3001.3,3001.2,13.54093585]
[1764295085698,0.4686,3001.3,3001.2,13.64093585]
[1764295086094,0.002,3001.3,3001.2,13.64093585]
[1764295086275,0.002,3001.3,3001.2,13.42993585]
[1764295086476,0.002,3001.3,3001.2,13.64093585]
[1764295086705,0.002,3001.3,3001.2,12.44544262]
[1764295088401,0.4686,3001.3,3001.2,12.13444262]
[1764295088608,0.4686,3001.3,3001.2,12.34544262]
[1764295088811,0.002,3001.3,3001.2,12.34544262]
[1764295089007,0.4686,3001.3,3001.2,12.34544262]
[1764295089177,0.002,3001.3,3001.2,12.34544262]
[1764295089377,0.4686,3001.3,3001.2,12.34544262]
[1764295090614,0.4686,3001.3,3001.2,10.96430376]
[1764295090820,0.002,3001.3,3001.2,10.96430376]
[1764295090974,0.9602,3001.3,3001.2,10.75330376]
[1764295091290,0.4685,3001.3,3001.2,12.15979699]
[1764295092841,0.002,3001.3,3001.2,12.15979699]
[1764295093022,0.4559,3001.3,3001.2,12.15979699]
[1764295093229,0.4559,3001.3,3001.2,10.96430376]
[1764295093414,0.9334,3001.3,3001.2,8.70406521]
[1764295093617,0.9334,3001.3,3001.2,1.19871758]
[1764295093798,1.24554501,3001.3,3001.1,3.3330883]
[1764295093995,1.24354501,3001.2,3001.1,3.3330883]
[1764295094196,1.24354501,3001.2,3001.1,7.57405487]
[1764295094453,0.31214501,3001.2,3001.1,7.57405487]
[1764295094596,0.002,3001.3,3001.1,7.57405487]
[1764295094916,0.4795,3001.3,3001.2,3.36532053]
[1764295095123,0.79152461,3001.3,3001.2,3.33200053]
[1764295095309,0.31402461,3001.3,3001.2,3.33200053]
[1764295095515,0.31402461,3001.3,3001.2,3.36532053]
[1764295095730,0.76792461,3001.3,3001.2,3.33200053]
[1764295096326,0.002,3001.3,3001.2,3.74635444]
[1764295096551,0.002,3001.4,3001.3,1.13109811]
[1764295096704,0.002,3001.4,3001.3,6.78178226]
[1764295096904,0.002,3001.4,3001.3,10.11367177]
[1764295097320,0.002,3001.4,3001.3,10.21367177]
[1764295097528,0.002,3001.4,3001.3,12.12195696]
[1764295097904,0.002,3001.4,3001.3,12.02195696]
[1764295098104,0.002,3001.4,3001.3,12.12195696]
[1764295098342,0.002,3001.4,3001.3,11.91095696]
[1764295098505,0.002,3001.4,3001.3,12.12195696]
[1764295098704,0.002,3001.4,3001.3,10.92323938]
[1764295105343,0.002,3001.4,3001.3,10.92423938]
[1764295105536,0.002,3001.6,3001.5,0.505504]
[1764295105835,0.002,3001.6,3001.5,7.62282003]
[1764295106039,0.002,3001.6,3001.5,11.64676496]
[1764295106749,0.002,3001.6,3001.5,10.4488692]
[1764295106951,0.4559,3001.6,3001.5,11.75771574]
[1764295107354,0.9334,3001.6,3001.5,11.75771574]
[1764295107650,0.002,3001.6,3001.5,11.85771574]
[1764295108051,0.002,3001.9,3001.7,0.1]
[1764295108264,0.002,3002.1,3001.8,1.13109811]
[1764295108451,0.002,3002.1,3002.0,10.50494604]
[1764295109821,0.4559,3002.1,3002.0,6.56948347]
[1764295110027,0.002,3002.1,3002.0,14.45256263]
[1764295111046,0.4559,3002.1,3002.0,14.45256263]
[1764295111246,0.4559,3002.1,3002.0,10.9722134]
[1764295111557,0.002,3002.1,3002.0,10.9722134]
[1764295111964,0.002,3002.1,3002.0,16.41059876]
[1764295112325,0.002,3002.1,3002.0,15.21317997]
[1764295115958,0.4559,3002.1,3002.0,10.8722134]
[1764295116159,0.9334,3002.1,3002.0,10.8722134]
[1764295117257,0.9334,3002.1,3002.0,15.11317997]
[1764295117653,0.9334,3002.1,3002.0,15.21317997]
[1764295117852,0.4559,3002.1,3002.0,15.21317997]
[1764295118857,0.9334,3002.1,3002.0,10.6612134]
[1764295119073,0.9334,3002.1,3002.0,10.8722134]
[1764295119575,0.9334,3002.1,3002.0,7.57207916]
[1764295121947,0.9334,3002.1,3002.0,3.33111259]
[1764295123057,0.9334,3002.1,3001.9,3.33122294]
[1764295123254,0.9602,3002.0,3001.9,3.33122294]
[1764295125383,1.27156789,3002.0,3001.9,3.33122294]
[1764295125973,1.27156789,3002.0,3001.7,3.33142253]
[1764295126279,0.6734,3001.8,3001.7,7.60570355]
[1764295126571,0.4764,3001.8,3001.7,7.5723891]
[1764295127273,0.9602,3001.8,3001.7,7.5723891]
[1764295127483,0.9602,3001.8,3001.7,3.33142253]
[1764295127645,0.9602,3001.8,3001.7,7.5723891]
[1764295128484,0.197,3001.9,3001.7,9.06828573]
[1764295128779,0.002,3002.1,3002.0,0.1]
[1764295128986,0.002,3002.1,3002.0,4.34096657]
[1764295129592,0.002,3002.1,3002.0,12.31854973]
[1764295129877,0.002,3002.1,3002.0,8.07758316]
[1764295130075,0.002,3002.1,3002.0,9.2395639]
[1764295131075,0.4784,3002.1,3002.0,13.48053047]
[1764295131371,0.4784,3002.1,3002.0,9.2395639]
[1764295131544,0.9622,3002.1,3002.0,3.33111259]
[1764295136550,1.27387414,3002.1,3002.0,3.33111259]
[1764295137271,1.27387414,3002.1,3001.9,7.57214019]
[1764295137574,0.9602,3002.0,3001.9,7.57214019]
[1764295139160,0.9602,3002.0,3001.9,7.57314019]
[1764295141373,0.9602,3002.0,3001.9,3.33217362]
[1764295143074,0.9602,3002.0,3001.9,3.36548585]
[1764295143399,0.4764,3002.0,3001.9,3.36548585]
[1764295143553,0.002,3002.1,3001.9,8.00148807]
[1764295143755,0.002,3002.1,3002.0,7.57207916]
[1764295144286,0.002,3002.1,3002.0,11.81304573]
[1764295145014,0.002,3002.1,3002.0,12.31854973]
[1764295145177,0.002,3002.1,3002.0,13.04414384]
[1764295145516,0.002,3002.5,3002.4,0.505504]
[1764295145715,0.002,3002.5,3002.4,8.28813936]
[1764295146705,0.002,3002.5,3002.4,8.17882175]
[1764295148574,0.002,3002.5,3002.4,4.04717279]
[1764295150808,0.4639,3002.5,3002.4,4.04717279]
[1764295151003,0.4639,3002.5,3002.4,3.33066879]
[1764295151004,0.9554,3002.5,3002.4,3.33066879]
[1764295151214,0.9554,3002.5,3002.0,3.41848767]
[1764295151506,0.9554,3002.5,3001.9,0.001]
[1764295151507,0.4619,3002.1,3001.9,7.46384741]
[1764295151907,0.9534,3002.1,3001.9,7.46384741]
[1764295152112,0.491,3002.3,3001.9,15.56002681]
[1764295152319,0.002,3002.5,3002.2,4.13164896]
[1764295152486,0.80269137,3002.4,3002.3,3.33077973]
[1764295152688,1.27519137,3002.4,3002.3,3.33077973]
[1764295154717,1.27519137,3002.4,3002.0,6.87322518]
[1764295155014,0.4725,3002.2,3002.0,7.92135841]
[1764295155311,0.80269137,3002.3,3002.0,7.92135841]
[1764295155312,0.4725,3002.1,3002.0,4.59024582]
[1764295155717,0.9635,3002.1,3002.0,4.59024582]
[1764295155894,0.9635,3002.1,3002.0,4.37924582]
[1764295156091,0.9635,3002.1,3002.0,3.54211259]
[1764295156811,0.002,3002.2,3002.1,0.405504]
[1764295157117,0.002,3002.5,3002.4,4.13164896]
[1764295157297,0.493,3002.5,3002.4,4.34264896]
[1764295157485,0.9655,3002.5,3002.4,4.34264896]
[1764295157886,0.9655,3002.5,3002.3,0.211]
[1764295158123,0.491,3002.4,3002.3,0.211]
[1764295158321,0.9635,3002.4,3002.3,0.211]
[1764295158620,0.9635,3002.4,3002.3,3.54177973]
[1764295160301,0.9635,3002.4,3002.3,3.33077973]
[1764295162821,0.002,3002.5,3002.3,4.43454268]
[1764295163024,0.002,3002.5,3002.4,4.16495564]
[1764295163415,0.4745,3002.5,3002.4,4.16495564]
[1764295164294,0.9655,3002.5,3002.4,4.16495564]
[1764295164535,0.002,3002.5,3002.4,4.16495564]
[1764295164690,0.002,3002.5,3002.4,8.70975235]
[1764295164891,0.9655,3002.5,3002.4,8.67644567]
[1764295165419,0.4745,3002.5,3002.4,8.67644567]
[1764295166010,0.9655,3002.5,3002.4,8.67644567]
[1764295167301,0.9655,3002.5,3002.4,3.33066879]
[1764295169198,1.27736855,3002.5,3002.2,6.66178136]
[1764295169400,0.491,3002.4,3002.2,6.66178136]
[1764295169714,0.4725,3002.3,3002.2,3.33089068]
[1764295170119,0.9635,3002.3,3002.0,3.33111259]
[1764295170306,0.4725,3002.1,3001.9,3.3321721]
[1764295170628,0.31191906,3002.2,3001.9,3.3321721]
[1764295170629,0.4725,3002.0,3001.9,3.3321721]
[1764295171137,0.9635,3002.0,3001.9,3.3321721]
[1764295171326,0.9635,3002.0,3001.9,0.001]
[1764295171697,1.275447,3002.0,3001.9,0.001]
[1764295173330,1.275447,3002.0,3001.9,4.13264896]
[1764295173506,1.275447,3002.0,3001.9,0.001]
[1764295176734,1.27523901,3002.0,3001.9,0.001]
[1764295178463,1.27524109,3002.0,3001.9,0.001]
[1764295180446,4.60635368,3002.0,3001.9,0.001]
[1764295180615,2.06896746,3002.0,3001.9,0.001]
[1764295180815,1.27524109,3002.0,3001.9,0.001]
[1764295181027,1.48624109,3002.0,3001.9,0.001]
[1764295184942,1.24694109,3002.0,3001.9,0.001]
[1764295190854,1.34694109,3002.0,3001.9,0.001]
[1764295191040,5.16715547,3002.0,3001.9,0.001]
[1764295191245,5.73464779,3002.0,3001.9,0.001]
[1764295194454,12.11464779,3002.0,3001.9,0.001]
[1764295195959,11.68364779,3002.0,3001.9,0.001]
[1764295196132,11.78316004,3002.0,3001.9,0.001]
[1764295196449,13.64687632,3002.0,3001.9,0.001]
[1764295198039,13.64692791,3002.0,3001.9,0.001]
[1764295199140,13.31592791,3002.0,3001.9,0.001]
[1764295200545,9.98481532,3002.0,3001.9,0.001]
[1764295200749,10.09581532,3002.0,3001.9,0.001]
[1764295200945,10.52681532,3002.0,3001.9,0.001]
[1764295201157,10.09581532,3002.0,3001.9,0.001]
[1764295201359,9.63311532,3002.0,3001.9,0.001]
[1764295201671,7.37480493,3002.0,3001.9,0.001]
[1764295202371,0.31130493,3002.0,3001.9,0.001]
[1764295202535,0.002,3002.2,3001.9,0.001]
[1764295204564,0.002,3002.2,3002.1,4.13334118]
[1764295204874,0.31352696,3002.2,3002.1,4.5467753]
[1764295206064,0.31352696,3002.2,3002.1,0.41343412]
[1764295206255,0.31352696,3002.2,3001.9,0.001]
[1764295206554,0.002,3002.2,3002.1,4.23950261]
[1764295206756,0.31347325,3002.2,3002.1,4.23950261]
[1764295208252,1.76547325,3002.2,3002.0,3.33111259]
[1764295208445,1.454,3002.2,3002.0,3.33111259]
[1764295208749,0.3114369,3002.1,3001.9,4.24050261]
[1764295208951,0.80074669,3002.0,3001.9,0.001]
[1764295209344,1.26344669,3002.0,3001.9,0.001]
[1764295210869,0.31144669,3002.0,3001.9,0.33424455]
[1764295211448,0.002,3002.2,3001.9,4.57374716]
[1764295211646,0.002,3002.2,3002.1,4.23950261]
[1764295212449,0.002,3002.2,3002.1,7.57050424]
[1764295214477,0.002,3002.2,3002.1,3.33100163]
[1764295214681,0.002,3002.2,3002.1,4.78769921]
[1764295217894,0.002,3002.2,3002.1,4.82100922]
[1764295223293,0.002,3002.2,3002.1,4.78769921]
[1764295233120,0.002,3002.2,3002.1,4.82100922]
[1764295236350,0.002,3002.4,3002.2,1.23109811]
[1764295236615,0.002,3002.4,3002.3,5.91406778]
[1764295236988,0.002,3002.4,3002.3,6.04746492]
[1764295237193,0.002,3002.4,3002.3,9.37824465]
[1764295237615,0.002,3002.9,3002.3,24.33568056]
[1764295237820,0.002,3002.9,3002.8,8.88450922]
[1764295238114,0.002,3002.9,3002.5,1.19775404]
[1764295238115,0.1994,3002.9,3002.5,1.19775404]
[1764295238415,0.1994,3002.9,3002.5,4.23950261]
[1764295238416,0.79809582,3002.8,3002.5,4.23950261]
[1764295238720,0.4995,3002.6,3002.3,3.33077973]
[1764295238897,0.4995,3002.4,3002.3,3.33077973]
[1764295239088,0.81139582,3002.4,3002.3,7.57028234]
[1764295239289,1.29759582,3002.4,3002.3,7.57028234]
[1764295239609,1.29759973,3002.4,3002.3,7.57028234]
[1764295242518,0.81139973,3002.4,3002.3,7.57028234]
[1764295242722,0.31189973,3002.4,3002.3,8.99349165]
[1764295244321,0.76209973,3002.4,3002.3,7.57028234]
[1764295244526,1.23699973,3002.4,3002.3,7.57028234]
[1764295246427,1.23699973,3002.4,3002.1,3.54189193]
[1764295246428,1.23699973,3002.4,3002.1,3.33089193]
[1764295246603,0.4502,3002.2,3002.1,3.33089193]
[1764295246804,0.76209973,3002.2,3002.1,3.33089193]
[1764295247041,0.76209973,3002.2,3002.0,0.001]
[1764295247042,1.23699973,3002.2,3002.0,0.001]
[1764295247203,1.23699973,3002.1,3002.0,0.001]
[1764295247399,1.23699973,3002.1,3002.0,3.33211259]
[1764295248124,0.76209973,3002.1,3002.0,7.5716152]
[1764295248721,1.23699973,3002.1,3002.0,7.5716152]
[1764295249299,0.31189973,3002.1,3002.0,7.5716152]
[1764295249826,0.31189973,3002.1,3002.0,8.66199905]
[1764295250029,0.4502,3002.1,3002.0,8.66199905]
[1764295250199,0.31183603,3002.1,3002.0,8.66199905]
[1764295250401,0.4749,3002.7,3002.0,12.90150166]
[1764295250723,0.4749,3002.7,3002.1,4.23950261]
[1764295250724,0.31182935,3002.6,3002.1,4.23950261]
[1764295250906,0.31182935,3002.5,3002.1,4.23950261]
[1764295251102,0.31182935,3002.4,3002.1,4.23950261]
[1764295251299,0.31182935,3002.3,3002.1,4.23950261]
[1764295251502,0.31182935,3002.2,3002.0,15.1422304]
[1764295251716,0.4749,3002.7,3002.1,1.53542304]
[1764295252002,0.3116455,3002.6,3002.1,1.53542304]
[1764295252202,0.3116455,3002.5,3002.3,6.66155946]
[1764295252398,0.3116455,3002.4,3002.3,3.33077973]
[1764295252603,0.3116455,3002.4,3002.3,7.57028234]
[1764295252803,1.2367455,3002.4,3002.3,7.57028234]
[1764295253032,0.3116455,3002.4,3002.3,7.57028234]
[1764295253232,1.2367455,3002.4,3002.2,3.33086165]
[1764295253401,0.7618455,3002.3,3002.2,3.33086165]
[1764295253605,1.2367455,3002.3,3002.2,3.33086165]
[1764295253919,0.7618455,3002.3,3002.2,3.33086165]
[1764295254425,0.3116455,3002.3,3002.1,6.66199167]
[1764295254610,0.4749,3002.7,3002.2,1.54750859]
[1764295254818,0.31181928,3002.6,3002.5,4.23950261]
[1764295255240,0.31181928,3002.6,3002.1,6.66199167]
[1764295255241,1.23691928,3002.6,3002.4,4.23950261]
[1764295255542,0.31181928,3002.5,3002.4,4.23950261]
[1764295255740,1.23691928,3002.5,3002.4,4.23950261]
[1764295256305,1.23691928,3002.5,3002.0,3.33206732]
[1764295256548,0.4502,3002.1,3002.0,3.33206732]
[1764295256842,0.4502,3002.1,3002.0,4.44354544]
[1764295257374,0.9251,3002.1,3002.0,4.44354544]
[1764295257572,1.23690599,3002.1,3002.0,4.44354544]
[1764295257873,1.23690599,3002.1,3002.0,3.33206732]
[1764295258249,0.9251,3002.1,3002.0,3.33206732]
[1764295259239,1.23690263,3002.1,3002.0,0.001]
[1764295261667,1.22690946,3002.1,3002.0,0.001]
[1764295262172,0.75200946,3002.1,3002.0,0.001]
[1764295262853,1.22690946,3002.1,3002.0,0.001]
[1764295263169,0.31180263,3002.1,3002.0,0.001]
[1764295263368,1.23690263,3002.1,3002.0,0.001]
[1764295265679,1.71477193,3002.1,3002.0,0.001]
[1764295265839,0.1,3001.8,3001.7,0.001]
[1764295266191,1.62950263,3001.8,3001.7,0.001]
[1764295270351,1.15460263,3001.8,3001.7,0.001]
[1764295270755,1.64880263,3001.8,3001.7,0.001]
[1764295271544,1.43780263,3001.8,3001.7,0.001]
[1764295271984,0.31180263,3001.8,3001.7,0.001]
[1764295272148,0.31180263,3001.8,3001.7,4.81547806]
[1764295272346,0.211,3002.4,3001.7,4.82757806]
[1764295272567,0.31078759,3002.3,3001.7,4.82757806]
[1764295272771,0.002,3002.8,3002.0,4.13574456]
[1764295272970,0.31079976,3002.7,3002.3,4.13574456]
[1764295273179,0.4874,3002.4,3002.0,4.13574456]
[1764295273382,0.4874,3002.4,3002.1,1.07981917]
[1764295273542,0.498,3002.7,3002.1,1.07981917]
[1764295273861,0.31080623,3002.6,3002.3,4.13574456]
[1764295274065,0.002,3002.8,3002.3,4.13574456]
[1764295274251,0.002,3002.8,3002.7,4.64124856]
[1764295274578,0.002,3002.8,3002.7,0.68722486]
[1764295274754,0.002,3002.8,3002.7,4.37094456]
[1764295274945,0.002,3002.8,3002.7,8.10678459]
[1764295276286,0.002,3002.8,3002.7,8.8323787]
[1764295276470,0.002,3003.1,3003.0,0.505504]
[1764295276648,0.002,3003.1,3003.0,5.37894267]
[1764295276850,0.002,3003.1,3003.0,6.00270635]
[1764295277050,0.002,3003.1,3003.0,9.33270968]
[1764295277983,0.4894,3003.1,3002.9,3.33006939]
[1764295278165,0.9874,3003.1,3002.9,3.33006939]
[1764295278472,0.4894,3003.1,3002.9,3.33006939]
[1764295278675,0.9854,3003.0,3002.7,3.33033603]
[1764295278880,0.4874,3002.9,3002.7,7.74031838]
[1764295279096,0.1821,3002.9,3002.7,4.40998235]
[1764295279448,0.4874,3002.8,3002.7,4.40998235]
[1764295279676,0.4874,3002.8,3002.7,3.33033603]
[1764295279880,0.9854,3002.8,3002.7,3.33033603]
[1764295280049,0.4874,3002.8,3002.7,3.33033603]
[1764295280367,0.4874,3002.8,3002.6,3.33043199]
[1764295280565,0.4874,3002.7,3002.6,3.33043199]
[1764295281457,0.1821,3002.9,3002.6,6.66087893]
[1764295281656,0.5,3003.1,3002.8,4.13574456]
[1764295282785,0.4874,3002.9,3002.6,6.66087893]
[1764295284073,0.4874,3002.9,3002.6,3.33043199]
[1764295284386,1.1675,3002.9,3002.6,3.36373645]
[1764295284566,1.1675,3002.9,3002.6,3.33043199]
[1764295284766,0.4874,3002.7,3002.6,3.36373645]
[1764295284967,0.4874,3002.7,3002.6,3.33043199]
[1764295285173,0.9854,3002.7,3002.6,3.33043199]
[1764295285498,0.9854,3002.7,3002.3,6.66153932]
[1764295285791,0.4874,3002.6,3002.3,6.66153932]
[1764295286197,0.9854,3002.6,3002.1,6.66200326]
[1764295286377,0.9854,3002.6,3002.2,1.15363408]
[1764295286567,0.9854,3002.6,3002.2,1.12032518]
[1764295286762,0.498,3002.5,3002.2,1.12032518]
[1764295287790,0.498,3002.8,3002.2,1.12032518]
[1764295288179,0.498,3002.8,3002.3,6.66155946]
[1764295289999,0.4874,3002.4,3002.3,3.33077973]
[1764295290401,0.9854,3002.4,3002.3,3.33077973]
[1764295290897,0.498,3002.8,3002.3,10.80940402]
[1764295291134,0.1821,3002.9,3002.3,11.58760347]
[1764295291268,0.498,3002.7,3002.3,10.79730402]
[1764295291472,0.4874,3002.4,3002.3,7.46652429]
[1764295291871,0.9854,3002.4,3002.3,7.46652429]
[1764295292095,0.4874,3002.4,3002.3,7.46652429]
[1764295293202,0.002,3003.1,3002.3,10.82150402]
[1764295293501,0.002,3003.1,3002.9,4.13574456]
[1764295294000,0.002,3003.1,3003.0,0.0121]
[1764295294403,0.4894,3003.1,3003.0,3.33000333]
[1764295294706,0.002,3003.1,3003.0,3.33000333]
[1764295295483,0.002,3003.1,3003.0,3.34210333]
[1764295295794,0.002,3003.1,3003.0,4.44399961]
[1764295297114,0.002,3003.5,3003.2,0.0121]
[1764295297317,0.002,3003.5,3003.4,0.417604]
[1764295297811,0.002,3003.5,3003.4,0.429704]
[1764295298384,0.002,3003.5,3003.4,3.75926383]
[1764295298635,0.002,3003.5,3003.4,4.91283234]
[1764295301525,0.002,3003.5,3003.4,5.25717256]
[1764295301720,0.002,3003.5,3003.4,5.24507256]
[1764295302420,0.002,3003.5,3003.4,5.23297256]
[1764295302794,0.002,3003.5,3003.4,5.24507256]
[1764295303121,0.002,3003.5,3003.4,5.25717256]
[1764295303422,0.002,3003.5,3003.4,5.24507256]
[1764295304612,0.002,3003.5,3003.4,5.23297256]
[1764295306430,0.002,3003.5,3003.4,5.02197256]
[1764295306592,0.4872,3003.5,3003.4,4.88863234]
[1764295306798,0.4872,3003.5,3003.4,3.32955983]
[1764295306799,0.9853,3003.5,3003.4,3.32955983]
[1764295307124,0.4872,3003.5,3003.4,3.32955983]
[1764295307927,0.9853,3003.5,3003.4,3.32955983]
[1764295308406,0.4872,3003.5,3003.4,3.32955983]
[1764295308817,0.002,3003.5,3003.4,3.36285542]
[1764295309212,0.002,3003.5,3003.4,7.51069998]
[1764295309423,0.002,3003.5,3003.4,8.89440929]
[1764295309736,0.002,3003.5,3003.4,8.88230929]
[1764295310735,0.002,3003.5,3003.4,8.89440929]
[1764295311140,0.002,3003.5,3003.4,9.10540929]
[1764295311713,0.002,3003.5,3003.4,9.09330929]
[1764295312310,0.002,3003.5,3003.4,9.10540929]
[1764295312630,0.002,3003.5,3003.4,4.96966473]
[1764295312819,0.002,3003.5,3003.4,5.00296032]
[1764295315336,0.4872,3003.5,3003.4,4.99086032]
[1764295315545,0.4872,3003.5,3003.4,4.95756473]
[1764295316133,0.9853,3003.5,3003.4,4.95756473]
[1764295316333,0.9853,3003.5,3003.4,3.54055983]
[1764295316639,0.4872,3003.5,3003.4,3.54055983]
[1764295316944,0.002,3003.5,3003.4,3.54055983]
[1764295317327,0.9853,3003.5,3003.4,3.32955983]
[1764295318852,0.9853,3003.5,3003.2,6.65945393]
[1764295319148,0.5001,3003.5,3003.0,6.66096046]
[1764295319319,0.5001,3003.5,3003.1,0.03329892]
[1764295319519,0.002,3003.5,3003.1,0.03329892]
[1764295319746,0.002,3003.5,3003.4,0.0121]
[1764295319951,0.002,3003.5,3003.4,0.04539559]
[1764295320941,0.002,3003.5,3003.4,3.37495542]
[1764295321143,0.002,3003.5,3003.4,4.41893554]
[1764295321344,0.4872,3003.5,3003.4,4.40683554]
[1764295321532,0.9853,3003.5,3003.0,0.001]
[1764295321857,0.4852,3003.1,3003.0,0.001]
[1764295322023,0.79635844,3003.1,3003.0,3.33100333]
[1764295322427,1.29445844,3003.1,3003.0,0.001]
[1764295322756,1.29445844,3003.1,3003.0,3.33100333]
[1764295323055,1.29445844,3003.1,3003.0,0.001]
[1764295326667,0.31115844,3003.1,3003.0,0.001]
[1764295326836,0.002,3003.5,3003.0,0.0131]
[1764295327039,0.002,3003.5,3003.4,0.0121]
[1764295327369,0.002,3003.5,3003.4,0.417604]
[1764295328232,0.002,3003.5,3003.4,0.45089959]
[1764295328756,0.002,3003.5,3003.4,0.417604]
[1764295328957,0.002,3003.5,3003.4,0.45089959]
[1764295329155,0.002,3003.5,3003.4,4.51815353]
[1764295329730,0.002,3003.5,3003.4,5.30083651]
[1764295331334,0.464,3003.5,3003.4,5.25544092]
[1764295331532,0.464,3003.5,3003.4,5.46644092]
[1764295332064,0.002,3003.5,3003.4,5.46644092]
[1764295333678,0.002,3003.5,3003.4,3.32955983]
[1764295333967,0.9764,3003.5,3003.4,3.32955983]
[1764295334670,0.5007,3003.5,3003.4,3.32955983]
[1764295334970,0.9764,3003.5,3003.4,3.32955983]
[1764295335569,0.9764,3003.5,3003.3,3.32967069]
[1764295335770,0.4757,3003.4,3003.3,3.32967069]
[1764295335965,0.002,3003.5,3003.3,4.02890209]
[1764295336665,0.4987,3003.4,3003.3,4.02890209]
[1764295336849,0.4987,3003.4,3003.3,3.99560539]
[1764295337240,0.9744,3003.4,3003.3,3.32967069]
[1764295337565,0.9744,3003.4,3003.1,6.65964655]
[1764295337865,0.002,3003.5,3003.2,0.03329781]
[1764295338066,0.4777,3003.5,3003.2,0.03329781]
[1764295338371,0.4777,3003.5,3003.1,9.98956759]
[1764295338372,0.4987,3003.3,3003.1,6.65967515]
[1764295338574,0.4987,3003.3,3003.2,0.72046533]
[1764295339074,0.4987,3003.3,3003.2,0.68716752]
[1764295339443,0.4987,3003.3,3003.2,3.32978156]
[1764295339765,0.9744,3003.3,3003.2,3.32978156]
[1764295340370,0.4987,3003.3,3003.2,3.32978156]
[1764295341348,0.002,3003.5,3003.2,6.65956312]
[1764295341566,0.002,3003.5,3003.1,3.32978271]
[1764295341880,0.4777,3003.5,3003.1,0.03329892]
[1764295342378,0.002,3003.5,3003.1,0.70257801]
[1764295342879,0.4777,3003.5,3003.1,0.70257801]
[1764295343475,0.4777,3003.5,3003.2,6.65956312]
[1764295343883,0.002,3003.5,3003.0,3.33098009]
[1764295344058,0.4777,3003.5,3003.0,9.99098675]
[1764295344260,0.31137867,3003.4,3003.0,9.99098675]
[1764295344472,0.4777,3003.5,3003.0,9.99098675]
[1764295344651,0.4757,3003.4,3003.1,0.001]
[1764295344980,0.002,3003.3,3003.1,0.001]
[1764295345486,0.4987,3003.2,3003.1,0.001]
[1764295346974,0.9744,3003.2,3003.1,0.001]
[1764295347790,0.002,3003.3,3003.1,0.001]
[1764295347791,0.002,3003.3,3003.1,0.0131]